bitfinex/quotes_ETHUSD_20250322
["timestamp","ask_amount","ask_price","bid_price","bid_amount"]
[1742613358250,5.03834,1984.8,1984.7,26.75759179]
[1742613362218,5.03808,1984.9,1984.7,29.11571453]
[1742613362433,10.07628,1984.9,1984.7,29.11571453]
[1742613363046,5.03829,1984.8,1984.7,29.11571453]
[1742613365425,5.03829,1984.8,1984.7,26.79349179]
[1742613366279,5.03829,1984.8,1984.7,26.75759179]
[1742613370171,5.03829,1984.8,1984.7,29.66557324]
[1742613370569,0.00189675,1984.9,1984.8,5.07419]
[1742613370899,0.00189675,1984.9,1984.8,10.38281212]
[1742613371054,0.00189675,1984.9,1984.8,8.06058938]
[1742613371255,0.00189675,1984.9,1984.8,11.52350604]
[1742613372051,0.00189675,1984.9,1984.8,13.84572878]
[1742613372659,0.00189675,1984.9,1984.8,11.52350604]
[1742613372863,0.00189675,1984.9,1984.8,13.84572878]
[1742613373067,0.00189675,1984.9,1984.8,13.06586573]
[1742613375609,0.00189675,1984.9,1984.8,9.2012833]
[1742613375761,0.00189675,1984.9,1984.8,17.75586573]
[1742613376411,0.00189675,1984.9,1984.8,13.06586573]
[1742613376567,5.03992675,1984.9,1984.8,4.80317664]
[1742613379470,5.03803,1984.9,1984.8,4.80317664]
[1742613386187,5.03791,1985.0,1984.8,4.80317664]
[1742613386369,5.03803,1984.9,1984.8,4.80317664]
[1742613386570,0.7973,1985.2,1984.8,17.40391673]
[1742613386797,5.03764,1985.1,1984.9,0.55]
[1742613387001,10.07534,1985.1,1984.9,0.55]
[1742613387178,10.07534,1985.1,1985.0,0.10428613]
[1742613387586,10.07534,1985.1,1985.0,31.42928613]
[1742613387792,10.07534,1985.1,1985.0,34.62721474]
[1742613388107,5.03764,1985.1,1985.0,34.62721474]
[1742613389803,0.7973,1985.7,1985.1,0.55]
[1742613390006,5.03651,1985.5,1985.3,3.86458243]
[1742613390172,5.03651,1985.5,1985.4,5.07545824]
[1742613390368,5.03651,1985.5,1985.4,5.17838192]
[1742613392804,5.03651,1985.5,1985.4,6.09292368]
[1742613392985,5.83381,1985.5,1985.4,6.09292368]
[1742613393190,12.69839243,1985.5,1985.4,0.10292368]
[1742613393578,5.03727,1985.2,1985.1,5.99]
[1742613393781,5.03727,1985.2,1985.1,10.679]
[1742613394023,5.83457,1985.2,1985.1,10.679]
[1742613394218,5.03752,1985.1,1985.0,31.325]
[1742613398810,5.79102,1985.1,1985.0,31.325]
[1742613400117,5.79102,1985.1,1985.0,31.42712022]
[1742613401627,5.03752,1985.1,1985.0,31.42712022]
[1742613402816,10.07475,1985.2,1985.0,34.57342224]
[1742613402992,5.03727,1985.2,1985.0,34.57342224]
[1742613403188,5.03678,1985.4,1985.1,5.03741]
[1742613403388,5.03692,1985.4,1985.1,0.55]
[1742613403623,5.03692,1985.4,1985.2,6.09281882]
[1742613403916,5.03692,1985.4,1985.3,0.60928188]
[1742613404304,5.03692,1985.4,1985.3,0.71154181]
[1742613406836,5.03692,1985.4,1985.3,6.70154181]
[1742613407428,5.03631,1985.6,1985.3,6.70154181]
[1742613407630,5.03631,1985.6,1985.4,10.678]
[1742613407928,5.03631,1985.6,1985.4,11.81695418]
[1742613408135,5.03631,1985.6,1985.5,0.10225993]
[1742613408827,5.03631,1985.6,1985.5,0.10036318]
[1742613409834,5.03631,1985.6,1985.5,26.73136318]
[1742613418438,5.0361,1985.7,1985.5,26.76726318]
[1742613418644,5.0361,1985.7,1985.5,35.37257739]
[1742613419005,10.07232,1985.7,1985.5,35.37257739]
[1742613419335,5.0361,1985.7,1985.5,35.37257739]
[1742613425032,5.03576,1985.8,1985.5,35.37257739]
[1742613425232,10.07168,1985.8,1985.6,0.05035714]
[1742613425442,5.03576,1985.8,1985.5,35.37257739]
[1742613425611,5.03576,1985.8,1985.7,0.09902853]
[1742613425923,5.036,1985.7,1985.5,35.27221421]
[1742613426238,5.036,1985.7,1985.5,35.23631421]
[1742613426634,9.71294243,1985.6,1985.5,32.621]
[1742613426809,5.84836,1985.6,1985.5,32.621]
[1742613428817,5.03541,1986.0,1985.5,37.6575]
[1742613428818,3.0,1986.0,1985.5,37.6575]
[1742613429017,5.03617,1985.7,1985.6,4.687]
[1742613429516,5.03617,1985.7,1985.6,8.4178]
[1742613430241,5.03617,1985.7,1985.6,14.4078]
[1742613432312,5.03557,1985.9,1985.6,14.4078]
[1742613432512,5.03557,1985.9,1985.7,0.05035688]
[1742613432861,5.03557,1985.9,1985.7,7.98940569]
[1742613433070,5.03547,1986.0,1985.7,7.98940569]
[1742613433216,5.03537,1986.0,1985.7,7.98940569]
[1742613433814,10.07077,1986.0,1985.7,7.98940569]
[1742613434229,5.03448,1986.3,1985.9,5.07135]
[1742613434415,5.03499,1986.1,1986.0,4.691]
[1742613436745,5.85679,1986.1,1986.0,4.691]
[1742613438576,5.03484,1986.2,1986.0,4.691]
[1742613438715,10.06977,1986.2,1986.1,0.4691]
[1742613439230,5.03484,1986.2,1986.1,6.4591]
[1742613443252,5.05198548,1986.4,1986.1,6.4591]
[1742613443430,5.03463,1986.3,1986.1,6.4591]
[1742613443635,5.03473,1986.2,1986.1,6.4591]
[1742613444154,10.08633548,1986.4,1986.1,6.4591]
[1742613444359,5.05195548,1986.4,1986.2,0.64591]
[1742613444524,5.03457,1986.3,1986.2,0.64591]
[1742613444729,5.05195548,1986.4,1986.2,0.64591]
[1742613445031,10.08634548,1986.4,1986.2,0.64591]
[1742613445230,5.05195548,1986.4,1986.2,0.64591]
[1742613445633,0.01769548,1986.4,1986.2,5.68042]
[1742613445845,0.01769548,1986.4,1986.3,6.558042]
[1742613446231,0.01769548,1986.4,1986.3,12.19286122]
[1742613446446,0.01769548,1986.4,1986.3,7.108042]
[1742613446847,0.01769548,1986.4,1986.3,7.143942]
[1742613447233,0.01769548,1986.4,1986.3,12.178422]
[1742613447928,0.01769548,1986.4,1986.3,7.143942]
[1742613448766,0.01769548,1986.4,1986.3,12.178422]
[1742613448961,0.01769548,1986.4,1986.3,12.54742508]
[1742613449773,0.01769548,1986.4,1986.3,7.51294508]
[1742613450183,0.01769548,1986.4,1986.3,12.54742508]
[1742613450752,0.01769548,1986.4,1986.3,7.51294508]
[1742613451648,0.01769548,1986.4,1986.3,12.54742508]
[1742613452251,0.01769548,1986.4,1986.3,16.41200751]
[1742613454990,0.01769548,1986.4,1986.3,17.39947637]
[1742613463805,0.01769548,1986.4,1986.3,44.01147637]
[1742613481939,0.01769548,1986.4,1986.3,43.97557637]
[1742613485751,0.01769548,1986.4,1986.3,44.01147637]
[1742613489525,0.01769548,1986.4,1986.3,47.01147637]
[1742613490229,0.01769548,1986.4,1986.3,50.01147637]
[1742613494842,10.8171,1987.1,1986.7,5.03335]
[1742613495158,10.8171,1987.1,1986.8,11.70963952]
[1742613495928,5.03272,1987.0,1986.8,11.70963952]
[1742613496659,0.7519,1986.9,1986.8,11.70963952]
[1742613498431,0.7519,1986.9,1986.8,38.31663952]
[1742613499160,0.7519,1986.9,1986.8,38.70286375]
[1742613505611,5.78486,1986.9,1986.8,38.70286375]
[1742613505798,0.7519,1986.9,1986.8,38.19952875]
[1742613506200,5.78486,1986.9,1986.8,38.19952875]
[1742613508802,0.7519,1986.9,1986.8,38.19952875]
[1742613509881,5.78486,1986.9,1986.8,38.19952875]
[1742613510094,5.78486,1986.9,1986.8,37.26330452]
[1742613510614,0.7519,1986.9,1986.8,37.26230452]
[1742613510785,5.78486,1986.9,1986.8,37.26230452]
[1742613511902,5.03296,1986.9,1986.8,37.26230452]
[1742613518421,5.03272,1987.0,1986.8,37.26230452]
[1742613518620,10.06559,1987.0,1986.9,26.607]
[1742613519521,5.03272,1987.0,1986.9,26.607]
[1742613521119,10.0646,1987.2,1986.9,26.607]
[1742613521423,5.03221,1987.2,1986.9,26.607]
[1742613522509,10.06456,1987.2,1986.9,26.607]
[1742613522900,5.03246,1987.1,1986.9,26.607]
[1742613523322,10.06452,1987.2,1986.9,26.607]
[1742613523620,5.03221,1987.2,1986.9,26.607]
[1742613523792,5.03248,1987.1,1986.9,26.607]
[1742613523993,10.06513,1987.1,1986.9,26.607]
[1742613524294,5.85848,1987.1,1987.0,5.97230452]
[1742613528028,5.85848,1987.1,1987.0,32.57830452]
[1742613550948,8.17321223,1987.1,1987.0,32.57830452]
[1742613551162,5.85848,1987.1,1987.0,32.57830452]
[1742613552963,8.17321223,1987.1,1987.0,32.57830452]
[1742613553170,9.48695745,1987.1,1987.0,32.57830452]
[1742613553466,9.48695745,1987.1,1987.0,26.606]
[1742613556269,9.48695745,1987.1,1986.7,4.682]
[1742613556270,5.85241,1986.8,1986.7,26.606]
[1742613556451,8.16714223,1986.8,1986.7,26.606]
[1742613556654,9.48716245,1986.8,1986.7,26.606]
[1742613558482,12.48716245,1986.8,1986.7,26.606]
[1742613563163,10.17243022,1986.8,1986.7,26.606]
[1742613563362,12.48716245,1986.8,1986.7,26.606]
[1742613564491,5.03321,1986.8,1986.7,26.606]
[1742613567866,7.34794223,1986.8,1986.7,26.606]
[1742613568876,5.03321,1986.8,1986.7,26.606]
[1742613570191,7.34794223,1986.8,1986.7,26.606]
[1742613570361,8.15764223,1986.8,1986.7,26.606]
[1742613573671,5.84291,1986.8,1986.7,26.606]
[1742613575613,8.15764223,1986.8,1986.7,26.606]
[1742613575814,5.84291,1986.8,1986.7,26.606]
[1742613577189,8.15764223,1986.8,1986.7,26.606]
[1742613578984,5.03372,1986.6,1986.5,5.97230452]
[1742613579218,5.03372,1986.6,1986.5,32.58230452]
[1742613580726,5.03372,1986.6,1986.5,36.30883497]
[1742613582816,5.03372,1986.6,1986.5,32.58230452]
[1742613583022,5.03372,1986.6,1986.5,37.26530452]
[1742613583186,7.34845223,1986.6,1986.5,32.58230452]
[1742613583391,7.34845223,1986.6,1986.5,37.26530452]
[1742613585029,5.03372,1986.6,1986.5,37.26530452]
[1742613585738,8.15560223,1986.7,1986.5,37.26530452]
[1742613585739,5.03357,1986.7,1986.5,37.26530452]
[1742613585894,5.03372,1986.6,1986.5,37.26530452]
[1742613586095,5.03372,1986.6,1986.5,40.99542497]
[1742613586612,5.03357,1986.7,1986.5,40.99542497]
[1742613590708,5.03321,1986.8,1986.5,40.99542497]
[1742613591047,10.06658,1986.8,1986.5,40.99542497]
[1742613591240,5.03349,1986.7,1986.5,40.99542497]
[1742613593740,10.06712,1986.7,1986.5,40.99542497]
[1742613594204,5.03349,1986.7,1986.5,40.99542497]
[1742613595138,10.06712,1986.7,1986.5,40.99542497]
[1742613595613,10.06712,1986.7,1986.6,26.61]
[1742613597840,5.03349,1986.7,1986.6,26.61]
[1742613603723,5.03306,1986.9,1986.6,34.32032766]
[1742613604025,5.03331,1986.8,1986.6,26.6459]
[1742613604222,5.83982,1987.1,1986.7,7.34807223]
[1742613604444,10.06575,1987.0,1986.7,5.97230452]
[1742613605257,5.03297,1986.9,1986.7,5.97230452]
[1742613605662,10.06607,1986.9,1986.7,5.97230452]
[1742613605833,5.03297,1986.9,1986.7,5.97230452]
[1742613608161,5.03274,1987.0,1986.7,5.97230452]
[1742613608329,5.03274,1987.0,1986.7,15.03966845]
[1742613609282,5.03274,1987.0,1986.7,10.00620845]
[1742613609561,5.03296,1986.9,1986.7,10.00620845]
[1742613610878,10.06611,1986.9,1986.7,10.00620845]
[1742613611081,5.03296,1986.9,1986.7,5.97230452]
[1742613611233,5.03321,1986.8,1986.7,5.97230452]
[1742613613362,5.83481,1986.8,1986.7,5.97230452]
[1742613613560,5.83481,1986.8,1986.7,10.65430452]
[1742613613762,8.14954223,1986.8,1986.7,10.65430452]
[1742613614866,5.83481,1986.8,1986.7,10.65430452]
[1742613616874,8.14954223,1986.8,1986.7,5.97230452]
[1742613617060,9.46779245,1986.8,1986.7,5.97230452]
[1742613617240,9.46779245,1986.8,1986.7,10.65430452]
[1742613618376,8.14954223,1986.8,1986.7,10.65430452]
[1742613618577,5.83481,1986.8,1986.7,10.65430452]
[1742613621067,5.83481,1986.8,1986.7,4.682]
[1742613621797,8.14954223,1986.8,1986.7,4.682]
[1742613622480,5.84717,1986.7,1986.6,26.61]
[1742613622671,8.97685645,1986.7,1986.6,26.61]
[1742613629516,5.03423,1986.4,1986.3,26.611]
[1742613630278,7.34896223,1986.4,1986.3,26.611]
[1742613630481,11.16266223,1986.4,1986.3,26.611]
[1742613630683,12.78233645,1986.4,1986.3,26.611]
[1742613631402,12.78233645,1986.4,1986.3,26.82772079]
[1742613636891,5.03499,1986.1,1986.0,4.682]
[1742613637091,5.86794,1986.0,1985.9,26.616]
[1742613637388,8.18267223,1986.0,1985.9,31.298]
[1742613638631,7.34997223,1986.0,1985.9,31.298]
[1742613639204,5.03524,1986.0,1985.9,31.298]
[1742613640403,5.03524,1986.0,1985.9,31.3339]
[1742613644728,5.03524,1986.0,1985.9,31.5339547]
[1742613645355,5.03499,1986.1,1985.9,31.5339547]
[1742613645712,5.03524,1986.0,1985.9,34.68735017]
[1742613647852,5.03499,1986.1,1985.9,34.68735017]
[1742613648352,10.07013,1986.1,1985.9,34.68735017]
[1742613648953,5.03524,1986.0,1985.9,34.68735017]
[1742613650766,5.03499,1986.1,1985.9,34.68735017]
[1742613650954,5.03499,1986.1,1986.0,3.21750264]
[1742613651181,5.03499,1986.1,1986.0,3.41679056]
[1742613653068,5.03499,1986.1,1986.0,0.19928792]
[1742613653250,5.03499,1986.1,1986.0,5.92159244]
[1742613653451,8.89741055,1986.1,1986.0,5.92159244]
[1742613653661,8.89741055,1986.1,1986.0,10.60359244]
[1742613655310,8.89741055,1986.1,1986.0,5.92159244]
[1742613655595,10.37301661,1986.1,1986.0,5.92159244]
[1742613656893,11.19691661,1986.1,1986.0,5.92159244]
[1742613658275,14.19691661,1986.1,1986.0,5.92159244]
[1742613658994,14.19691661,1986.1,1986.0,0.19928792]
[1742613663600,5.03651,1985.5,1985.4,5.72230452]
[1742613663770,8.89893055,1985.5,1985.4,32.34330452]
[1742613663971,8.89893055,1985.5,1985.4,26.621]
[1742613664580,5.03752,1985.1,1985.0,37.02630452]
[1742613665704,5.03737,1985.2,1985.0,40.73252497]
[1742613665874,10.07487,1985.2,1985.0,40.73252497]
[1742613666500,5.03752,1985.1,1985.0,40.73252497]
[1742613668085,5.0366,1985.5,1985.1,5.03735]
[1742613668281,5.03696,1985.4,1985.2,0.0359]
[1742613669004,5.03654,1985.5,1985.3,0.55]
[1742613669225,10.07227,1985.7,1985.4,4.683]
[1742613669405,5.03631,1985.6,1985.4,10.40530452]
[1742613670112,5.0361,1985.7,1985.5,0.0359]
[1742613670272,5.0361,1985.7,1985.5,1.08002045]
[1742613670474,10.07227,1985.7,1985.5,1.08002045]
[1742613671003,10.07227,1985.7,1985.6,0.18679492]
[1742613671510,5.0361,1985.7,1985.6,0.18679492]
[1742613673812,5.0361,1985.7,1985.6,5.90909944]
[1742613675619,5.0361,1985.7,1985.6,6.60801143]
[1742613678387,5.0361,1985.7,1985.6,33.23301143]
[1742613682519,5.0361,1985.7,1985.6,32.53409944]
[1742613687328,10.07122,1985.9,1985.6,33.11999944]
[1742613687535,5.03478,1986.2,1985.7,0.55]
[1742613687826,5.03534,1986.0,1985.8,10.59248294]
[1742613688030,5.03502,1986.1,1985.9,0.5859]
[1742613688333,5.03397,1986.5,1986.2,0.0359]
[1742613688647,5.03383,1986.6,1986.3,10.95530452]
[1742613688850,5.03412,1986.5,1986.4,27.174]
[1742613689010,5.03412,1986.5,1986.4,32.89630452]
[1742613689203,5.03412,1986.5,1986.4,33.08348294]
[1742613689395,5.03412,1986.5,1986.4,32.53348294]
[1742613690953,5.84682,1986.5,1986.4,37.21548294]
[1742613691628,8.84682,1986.5,1986.4,37.21548294]
[1742613692232,8.84682,1986.5,1986.4,31.49317842]
[1742613694119,8.03412,1986.5,1986.4,31.49317842]
[1742613694327,5.03412,1986.5,1986.4,31.49317842]
[1742613694631,5.03412,1986.5,1986.4,34.64249626]
[1742613695341,5.03382,1986.6,1986.4,31.49317842]
[1742613695548,5.03382,1986.6,1986.5,0.0359]
[1742613695716,5.03348,1986.7,1986.5,0.21729103]
[1742613696213,5.03324,1986.8,1986.6,6.27230452]
[1742613696416,10.06665,1986.8,1986.7,0.18065932]
[1742613700210,10.06665,1986.8,1986.7,5.90296384]
[1742613704341,4.67512055,1987.1,1986.7,6.49326022]
[1742613704342,5.033,1986.9,1986.7,6.49326022]
[1742613704552,5.033,1986.9,1986.8,4.7169]
[1742613704913,5.033,1986.9,1986.8,4.681]
[1742613705143,5.033,1986.9,1986.8,4.85922059]
[1742613708655,5.033,1986.9,1986.8,31.47122059]
[1742613709257,5.03223,1987.2,1986.9,0.0359]
[1742613709438,5.03223,1987.2,1987.0,0.17787229]
[1742613710967,10.06463,1987.2,1987.0,0.17787229]
[1742613711365,5.03245,1987.1,1987.0,0.17787229]
[1742613711870,10.0646,1987.2,1987.0,0.17787229]
[1742613712168,5.03245,1987.1,1987.0,0.17787229]
[1742613712676,10.06461,1987.2,1987.0,0.17787229]
[1742613713047,5.03146,1987.5,1987.1,6.27230452]
[1742613713247,5.03145,1987.5,1987.2,16.14773056]
[1742613713446,5.03131,1987.6,1987.2,16.09741497]
[1742613713661,5.03098,1987.7,1987.3,5.20846424]
[1742613713865,5.960693,1988.1,1987.3,11.51666876]
[1742613714055,5.03068,1987.8,1987.3,16.19666876]
[1742613714262,10.06155,1987.8,1987.3,17.57165789]
[1742613714466,5.03068,1987.8,1987.3,17.57165789]
[1742613714976,5.03096,1987.7,1987.3,17.57165789]
[1742613715773,5.03153,1987.5,1987.3,12.53970789]
[1742613716291,10.06315,1987.5,1987.3,12.53970789]
[1742613716466,5.03153,1987.5,1987.3,12.53970789]
[1742613719378,5.03121,1987.6,1987.3,12.53970789]
[1742613719555,10.06255,1987.6,1987.3,12.53970789]
[1742613720601,5.03145,1987.5,1987.3,12.53970789]
[1742613721182,5.03121,1987.6,1987.3,12.53970789]
[1742613721783,10.06255,1987.6,1987.3,12.53970789]
[1742613722249,10.06255,1987.6,1987.3,39.14170789]
[1742613722780,5.03099,1987.7,1987.3,44.17365789]
[1742613722977,10.06209,1987.7,1987.3,44.17365789]
[1742613723182,5.03099,1987.7,1987.3,44.54899608]
[1742613723582,5.03127,1987.6,1987.3,44.54899608]
[1742613724178,5.03127,1987.6,1987.3,39.51704608]
[1742613724384,5.03127,1987.6,1987.3,44.54899608]
[1742613725188,10.06264,1987.6,1987.3,39.51704608]
[1742613725383,10.06263,1987.6,1987.3,39.51704608]
[1742613725686,5.03127,1987.6,1987.3,39.51704608]
[1742613726073,5.03127,1987.6,1987.3,44.54899608]
[1742613726786,10.06202,1987.7,1987.3,44.54899608]
[1742613727155,5.03121,1987.6,1987.3,44.54899608]
[1742613727788,5.03097,1987.7,1987.3,44.54899608]
[1742613728387,10.0621,1987.7,1987.3,44.54899608]
[1742613728684,5.03122,1987.6,1987.3,44.54899608]
[1742613729191,10.06259,1987.6,1987.3,39.51704608]
[1742613729491,5.03146,1987.5,1987.3,39.48114608]
[1742613729861,5.03122,1987.6,1987.3,44.51309608]
[1742613731859,10.06256,1987.6,1987.3,39.48114608]
[1742613733093,5.03122,1987.6,1987.3,44.51309608]
[1742613733890,10.06257,1987.6,1987.3,39.47914608]
[1742613734105,5.03122,1987.6,1987.3,44.51109608]
[1742613735294,5.03122,1987.6,1987.3,34.80114608]
[1742613735470,5.03153,1987.5,1987.3,39.47914608]
[1742613735675,10.06314,1987.5,1987.3,39.47914608]
[1742613736193,5.1502892,1987.4,1987.3,39.47914608]
[1742613736696,0.1185992,1987.4,1987.3,39.47914608]
[1742613740006,5.1502892,1987.4,1987.3,39.47914608]
[1742613744273,0.1185992,1987.4,1987.3,39.47914608]
[1742613744621,0.1185992,1987.4,1987.3,44.54699608]
[1742613744784,0.1185992,1987.4,1987.3,47.54699608]
[1742613745937,0.1185992,1987.4,1987.3,43.99699608]
[1742613746073,0.1185992,1987.4,1987.3,44.54699608]
[1742613747215,0.1185992,1987.4,1987.3,34.80114608]
[1742613747427,5.1502892,1987.4,1987.3,37.55415695]
[1742613747631,0.1185992,1987.4,1987.3,38.10415695]
[1742613747919,0.1185992,1987.4,1987.3,37.55415695]
[1742613748272,0.1185992,1987.4,1987.3,38.10415695]
[1742613748474,0.1185992,1987.4,1987.3,40.06944246]
[1742613751896,5.1502892,1987.4,1987.3,40.06944246]
[1742613752231,5.9427892,1987.4,1987.3,37.17881876]
[1742613752380,5.9427892,1987.4,1987.3,32.50081876]
[1742613752584,5.9427892,1987.4,1987.3,37.17881876]
[1742613754083,5.1502892,1987.4,1987.3,37.17881876]
[1742613754283,5.9427892,1987.4,1987.3,37.17881876]
[1742613754532,7.92961017,1987.4,1987.3,26.77851424]
[1742613754885,10.92961017,1987.4,1987.3,26.77851424]
[1742613756599,5.784,1987.2,1987.1,5.72230452]
[1742613756806,5.78451,1987.0,1986.9,4.678]
[1742613757038,9.64693055,1987.0,1986.9,4.678]
[1742613759680,9.64693055,1987.0,1986.8,26.601]
[1742613759681,5.03296,1986.9,1986.8,26.601]
[1742613759964,5.78476,1986.9,1986.8,26.601]
[1742613761617,8.78476,1986.9,1986.8,26.601]
[1742613761819,5.03423,1986.4,1986.3,5.72230452]
[1742613762040,9.64845055,1986.4,1986.3,37.02530452]
[1742613764158,9.64845055,1986.4,1986.3,37.18460266]
[1742613772373,9.64845055,1986.4,1986.3,32.48460266]
[1742613772757,9.71935055,1986.4,1986.3,32.48460266]
[1742613773059,15.05711316,1986.4,1986.3,26.76229814]
[1742613773259,11.19469261,1986.4,1986.3,26.76229814]
[1742613773553,15.05711316,1986.4,1986.3,26.76229814]
[1742613773757,5.85769,1986.1,1986.0,10.41830452]
[1742613773961,9.72011055,1986.1,1986.0,10.41830452]
[1742613774149,11.19560461,1986.1,1986.0,10.41830452]
[1742613775042,11.19560461,1986.1,1986.0,5.72230452]
[1742613775247,11.19560461,1986.1,1986.0,5.86086092]
[1742613776049,14.19560461,1986.1,1986.0,6.4e-06]
[1742613776362,14.19560461,1986.1,1986.0,5.52e-06]
[1742613776527,14.19560461,1986.1,1986.0,2.19e-06]
[1742613776729,5.8587,1985.7,1985.6,5.72230452]
[1742613777041,5.03626,1985.6,1985.5,10.42330452]
[1742613783747,5.03626,1985.6,1985.5,10.52657467]
[1742613791209,5.03626,1985.6,1985.5,5.82557467]
[1742613793985,5.03626,1985.6,1985.5,0.10327015]
[1742613794281,5.03661,1985.5,1985.3,31.316]
[1742613794475,10.07328,1985.5,1985.3,31.316]
[1742613794661,10.07328,1985.5,1985.3,31.3519]
[1742613794863,5.03661,1985.5,1985.3,31.3519]
[1742613795186,5.03651,1985.5,1985.3,31.3519]
[1742613797089,3.86242055,1985.7,1985.4,0.55]
[1742613797090,5.03608,1985.7,1985.4,0.55]
[1742613797283,4.65062055,1985.9,1985.6,5.58623]
[1742613797284,5.03564,1985.9,1985.6,5.58623]
[1742613797496,5.03579,1985.8,1985.7,4.686]
[1742613800100,7.21737506,1985.8,1985.7,10.40830452]
[1742613800270,7.21737506,1985.8,1985.7,5.72230452]
[1742613801606,10.21737506,1985.8,1985.7,5.72230452]
[1742613802706,10.18197506,1985.8,1985.7,5.72230452]
[1742613803398,8.03579,1985.8,1985.7,5.72230452]
[1742613804687,5.03579,1985.8,1985.7,5.72230452]
[1742613805094,5.03579,1985.8,1985.7,5.81712461]
[1742613816138,5.82449,1985.8,1985.7,5.81712461]
[1742613817422,5.82449,1985.8,1985.7,0.09482009]
[1742613817598,5.03626,1985.6,1985.5,26.626]
[1742613817800,5.03626,1985.6,1985.5,26.72047251]
[1742613821136,5.03611,1985.7,1985.5,26.75637251]
[1742613821325,10.07231,1985.7,1985.5,26.75637251]
[1742613822629,5.03611,1985.7,1985.5,26.75637251]
[1742613822835,10.07227,1985.7,1985.5,26.75637251]
[1742613823219,10.07228,1985.7,1985.5,26.75637251]
[1742613823546,10.07228,1985.7,1985.6,5.72230452]
[1742613823904,10.07228,1985.7,1985.6,5.81771556]
[1742613824456,5.0358,1985.8,1985.6,5.81771556]
[1742613824631,5.036,1985.7,1985.6,5.81771556]
[1742613828780,5.0358,1985.8,1985.6,5.81771556]
[1742613828964,5.03551,1985.9,1985.6,9.06567712]
[1742613829279,10.07119,1985.9,1985.7,0.0359]
[1742613829481,10.07119,1985.9,1985.8,4.683]
[1742613829983,5.03551,1985.9,1985.8,4.79565796]
[1742613831683,5.03528,1986.0,1985.8,4.79565796]
[1742613831886,5.03528,1986.0,1985.8,10.51796248]
[1742613832089,5.03528,1986.0,1985.8,12.13194373]
[1742613832468,10.07068,1986.0,1985.8,12.13194373]
[1742613832765,10.07068,1986.0,1985.9,26.626]
[1742613833381,10.07068,1986.0,1985.9,26.73865796]
[1742613835096,10.07068,1986.0,1985.9,32.46096248]
[1742613837373,11.845148,1986.0,1985.9,32.46096248]
[1742613838003,11.077748,1986.0,1985.9,32.46096248]
[1742613839502,11.077748,1986.0,1985.9,37.14296248]
[1742613839813,11.077748,1986.0,1985.9,37.03030452]
[1742613840611,11.077748,1986.0,1985.9,32.34830452]
[1742613841404,11.845148,1986.0,1985.9,32.34830452]
[1742613841601,15.70756855,1986.0,1985.9,32.34830452]
[1742613841816,15.70756855,1986.0,1985.9,26.626]
[1742613842423,5.80315,1985.8,1985.7,4.682]
[1742613847329,5.03575,1985.8,1985.7,4.682]
[1742613847535,5.0356,1985.9,1985.7,5.15379]
[1742613847983,5.03528,1986.0,1985.8,5.72230452]
[1742613848185,5.03528,1986.0,1985.9,0.0359]
[1742613848586,5.035,1986.1,1985.9,0.0359]
[1742613848826,5.03478,1986.2,1985.9,5.75820452]
[1742613848992,10.06967,1986.2,1986.0,0.57582045]
[1742613849329,5.03456,1986.3,1986.1,4.687]
[1742613849510,5.03456,1986.3,1986.1,10.40930452]
[1742613849679,5.03448,1986.3,1986.2,0.0359]
[1742613850185,5.03427,1986.4,1986.2,0.0359]
[1742613850584,10.06865,1986.4,1986.3,26.623]
[1742613850786,5.03427,1986.4,1986.3,32.34530452]
[1742613852926,5.03364,1986.7,1986.3,35.58342497]
[1742613853096,10.06664,1986.8,1986.5,0.0359]
[1742613853300,5.03326,1986.8,1986.5,9.75686]
[1742613853914,5.033,1986.9,1986.5,9.75667]
[1742613854231,5.033,1986.9,1986.6,6.69797152]
[1742613854736,10.06614,1986.9,1986.6,6.69797152]
[1742613855234,5.03272,1987.0,1986.7,0.0359]
[1742613855397,5.0325,1987.1,1986.8,10.75548452]
[1742613855600,10.06512,1987.1,1986.9,4.694]
[1742613855842,5.03271,1987.0,1986.9,4.694]
[1742613856299,5.0325,1987.1,1986.9,4.694]
[1742613856832,5.03271,1987.0,1986.9,4.694]
[1742613857595,5.0325,1987.1,1986.9,10.41630452]
[1742613858433,5.03271,1987.0,1986.9,10.41630452]
[1742613858936,5.0325,1987.1,1986.9,10.41630452]
[1742613861271,10.06515,1987.1,1986.9,10.41630452]
[1742613861880,5.0325,1987.1,1986.9,37.02830452]
[1742613862023,5.03225,1987.2,1986.9,38.60959473]
[1742613862227,5.03225,1987.2,1986.9,43.64253473]
[1742613862878,10.06463,1987.2,1986.9,38.60959473]
[1742613863469,5.03253,1987.1,1986.9,38.60959473]
[1742613865162,5.03253,1987.1,1986.9,37.02830452]
[1742613865548,5.03225,1987.2,1986.9,37.02830452]
[1742613866076,5.03246,1987.1,1986.9,37.02830452]
[1742613866649,10.06508,1987.1,1986.9,37.02830452]
[1742613866856,5.03271,1987.0,1986.9,37.02830452]
[1742613868184,5.85301,1987.0,1986.9,37.02830452]
[1742613872295,7.444813,1987.0,1986.9,32.33430452]
[1742613873264,7.444813,1987.0,1986.9,26.612]
[1742613874394,5.03347,1986.7,1986.6,4.685]
[1742613874550,5.03422,1986.5,1986.3,37.01930452]
[1742613874746,10.06836,1986.5,1986.3,37.01930452]
[1742613874994,10.06827,1986.5,1986.3,37.01930452]
[1742613876214,5.03413,1986.5,1986.3,37.01930452]
[1742613876394,5.03423,1986.4,1986.3,37.01930452]
[1742613876585,10.06826,1986.5,1986.3,37.01930452]
[1742613877211,5.03423,1986.4,1986.3,37.01930452]
[1742613878415,5.03413,1986.5,1986.3,37.01930452]
[1742613878579,5.03423,1986.4,1986.3,37.01930452]
[1742613878910,10.06821,1986.5,1986.3,37.01930452]
[1742613879082,5.03348,1986.7,1986.3,40.72482497]
[1742613879284,5.03348,1986.7,1986.3,45.75917497]
[1742613879492,5.03384,1986.6,1986.3,40.72482497]
[1742613879882,10.06775,1986.6,1986.3,40.72482497]
[1742613880213,5.03351,1986.7,1986.3,45.75928497]
[1742613880394,5.03385,1986.6,1986.3,45.75928497]